Cogmind - Beta 16 @@@ ROGUE MODE // 2025.11.07 @ 14:20:32 Player: opdo Result: Destroyed by D-53 Grenadier with Mini Grenade Launcher Performance ------------- Evolutions (0) 0 Regions Visited (2) 400 Robots Destroyed (16) 80 Value Destroyed (331) 331 Prototype IDs (0) 0 Alien Tech Used (0) 0 Bonus (0) 0 TOTAL SCORE: 811 Bonus ------- None Cogmind --------- Core Integrity 0/250 Matter 295/300 Energy 250/250 System Corruption 2% Temperature Cool (0) Movement Treading (160) Location -10/Mines Parts ------- > --- POWER (1) -------- Ion Engine > --- PROPULSION (2) --- Light Treads Light Treads > --- UTILITY (2) ------ Medium Storage Unit Weapon Shielding > --- WEAPON (2) ------- Heavy Hammer > --- INVENTORY (10) --- Ion Engine Light Treads Light Treads Light Treads Light Treads Medium Matter Pod (100) Assault Rifle Light Assault Rifle Light Assault Rifle Peak State ------------ > --- POWER ------------ Ion Engine > --- PROPULSION ------- Light Treads Light Treads > --- UTILITY ---------- Small Storage Unit Improved Targeting Computer > --- WEAPON ----------- Assault Rifle Assault Rifle > --- INVENTORY -------- Aluminum Leg Aluminum Leg Improved Targeting Computer Improved Targeting Computer Light Assault Rifle Light Assault Rifle Heavy Hammer [Rating: 9] Favorites ----------- Power Ion Engine Engine Ion Engine Propulsion Light Treads Treads Light Treads Utility Medium Storage Unit Storage Medium Storage Unit Processor Improved Targeting Computer Protection Weapon Shielding Weapon Assault Rifle Ballistic Gun Assault Rifle Impact Weapon Heavy Hammer Build | -11 -10 -10 ------- Run | Yrd Mat Min Slots Evolved . | . . . Power . | . . . Propulsion . | . . . Utility . | . . . Weapon . | . . . Parts Attached 15 | 6 8 1 Power 2 | 1 1 . Engine 2 | 1 1 . Core . | . . . Reactor . | . . . Propulsion 6 | 2 3 1 Treads 6 | 2 3 1 Leg . | . . . Wheel . | . . . Hover . | . . . Flight . | . . . Utility 4 | 1 3 . Device . | . . . Storage 2 | 1 1 . Processor 1 | . 1 . Hackware . | . . . Protection 1 | . 1 . Artifact . | . . . Weapon 3 | 2 1 . Energy Gun . | . . . Energy Cannon . | . . . Ballistic Gun 2 | 2 . . Ballistic Cannon . | . . . Launcher . | . . . Special Weapon . | . . . Impact Weapon 1 | . 1 . Slashing Weapon . | . . . Piercing Weapon . | . . . Special Melee Weapon . | . . . Unidentified Prototypes . | . . . Parts Lost 4 | . 2 2 Power . | . . . Propulsion 1 | . . 1 Utility 1 | . 1 . Weapon 2 | . 1 1 Highest Loss Streak 2 | . 2 2 To Critical Strikes . | . . . Average Backups 8 | . 8 9 Power . | . . 1 Propulsion 3 | . 2 4 Utility 1 | . 1 1 Weapon 2 | . 3 3 Tool/Special . | . . . Unused Backups 12 | . 7 5 Power . | . . . Propulsion 3 | . 2 1 Utility 4 | . 3 1 Weapon 5 | . 2 3 Tool/Special . | . . . Average Slot Usage (%) 99 | . 99 99 Engine 14 | . 14 14 Treads 28 | . 28 28 Storage 14 | . 14 14 Processor 7 | . 11 . Protection 6 | . 2 14 Ballistic Gun 21 | . 25 13 Impact Weapon 6 | . 2 14 Peak Build Rating 9 | 6 9 9 Average Rating 8 | 4 8 8 On Entrance 5 | . 6 9 Avg Prop Armor Cover (%) . | . . . Naked Turns . | . . . Heaviest Build 21 | 14 21 21 Greatest Support 40 | 40 40 40 Greatest Overweight (x) 1 | . . 1 Average Overweight (x) . | . . . Largest Inventory Capacity 10 | 8 10 10 Average Capacity 9 | 7 8 10 Most Carried 10 | 2 10 10 Average Carried 8 | . 8 9 Final Capacity 10 | 8 10 10 Final Carried 10 | 2 10 9 Class Distribution -------------------- 100% | Mutant Dominant Class ---------------- Mutant | -10/Materials Mutant | -10/Mines Resources | -11 -10 -10 ----------- Run | Yrd Mat Min Matter Collected 649 | 248 385 16 Remotely . | . . . Salvage Created 442 | . 348 94 Parts 22 | . 22 . Haulers Intercepted 1 | . 1 . Recyclers Shooed . | . . . Parts Field Recycled . | . . . Retrieved Matter . | . . . Parts Self-Destructed . | . . . Prevented . | . . . Parts Restored . | . . . Kills | -11 -10 -10 ------- Run | Yrd Mat Min Combat Hostiles Destroyed 14 | . 11 3 Melee 7 | . 4 3 Guns 7 | . 7 . Classes Destroyed 6 | . 4 2 Builder 2 | . . 2 Hauler 1 | . 1 . Watcher 1 | . 1 . Swarmer 6 | . 6 . Grunt 6 | . 5 1 Assembled 2 | . . 2 Best Kill Streak 4 | . 4 1 Combat Bots Only 4 | . 4 1 Max Kills in Single Turn 1 | . 1 1 Gunslinging . | . . . Exploded . | . . . Melee 1 | . 1 1 Uniques/NPCs Destroyed . | . . . Combat | -11 -10 -10 -------- Run | Yrd Mat Min Hostile Shots Fired 88 | . 70 18 Missed 22 | . 18 4 Hits 66 | . 52 14 Projectile 66 | . 52 14 AOE 8 | . . 8 Critical Strikes 3 | . 3 . Damage Taken 982 | . 582 400 Core 259 | . 102 157 Absorbed by Shields . | . . . Redirected to Shielding 21 | . 7 14 Core Remaining (%) 100 | 100 . . Volleys Fired 33 | . 33 . Largest 2 | . 2 . Hottest 40 | . 40 . Shots Fired 67 | . 67 . Gun 67 | . 67 . Cannon . | . . . Launcher . | . . . Special . | . . . Kinetic 67 | . 67 . Thermal . | . . . Explosive . | . . . Electromagnetic . | . . . Robot Hit Streak 9 | . 9 . Robot Miss Streak 4 | . 4 . Penetration Max . | . . . Secondary Targets 2 | . 2 . Max Gunslinging Chain 1 | . 1 . Shots Hit Robots 64 | . 54 10 Core Hits 18 | . 17 1 Critical Kills 2 | . 2 . Critical Parts Destroyed 5 | . . 5 Critical Strikes 7 | . 2 5 Smash 7 | . 2 5 Melee Attacks 24 | . 13 11 Impact 24 | . 13 11 Slashing . | . . . Piercing . | . . . Sneak Attacks 3 | . . 3 Combat Hostiles 1 | . . 1 Follow-up Attacks . | . . . Damage Inflicted 1440 | . 929 511 Guns 545 | . 545 . Cannons . | . . . Explosions . | . . . Melee 889 | . 378 511 Ramming 6 | . 6 . Kinetic 545 | . 545 . Thermal . | . . . Explosive . | . . . Electromagnetic . | . . . Impact 889 | . 378 511 Slashing . | . . . Piercing . | . . . Highest Corruption 2 | . 2 2 Average Corruption 2 | . 2 2 Corruption Purged . | . . . Corruption Blocked . | . . . Effects 8 | . 3 5 Message Errors 2 | . . 2 Matter Fused 4 | . 1 3 Energy Discharges 1 | . 1 . Misfires 1 | . 1 . Overload Shots . | . . . Overflow Damage 380 | . . 380 Projectiles . | . . . Explosions . | . . . Melee 380 | . . 380 Knockbacks 4 | . . 4 Impact 4 | . . 4 Kinetic . | . . . Secondary . | . . . Self-Inflicted Damage . | . . . Shots . | . . . Rammed 1 | . 1 . Targets Rammed 1 | . 1 . Kicked . | . . . Crushed . | . . . Highest Temperature 20 | . 20 . Average Temperature 5 | . 5 . Received Heat Transfer 282 | . 255 27 Siege Activations . | . . . Martial Activations . | . . . Shielding Activations . | . . . Robots Disrupted . | . . . Combat Hostiles . | . . . Robots Corrupted 2 | . . 2 Combat Hostiles . | . . . Parts Fried 3 | . . 3 Impact Corruptions 10 | . . 10 Robots Melted . | . . . Combat Hostiles . | . . . Parts Melted . | . . . Heat Transferred . | . . . Parts Sabotaged . | . . . Parts Stolen . | . . . Parts Stripped . | . . . Power Chain Reactions . | . . . Alert | -11 -10 -10 ------- Run | Yrd Mat Min Maximum Alert Level . | . . . Low Security (%) 100 | 100 100 100 Level 1 . | . . . Level 2 . | . . . Level 3 . | . . . Level 4 . | . . . Level 5 . | . . . High Security . | . . . Max Security . | . . . Peak Influence 88 | . 88 30 Initial 21 | . . 21 Average 19 | . 30 2 Influence Increases 379 | . 339 40 Destroy 0b10 Robot/C 240 | . 220 20 Destroy 0b10 Robot/NC 20 | . 10 10 Destroy Leader 64 | . 54 10 Successful Hack 38 | . 38 . Destroy Structure 2 | . 2 . Partial Spotted 15 | . 15 . Influence Decreases 379 | . 284 95 Entered New Map 34 | . . 34 Time Decay 325 | . 264 61 Lost Part 20 | . 20 . Squads Dispatched 2 | . 2 . Investigation . | . . . Extermination . | . . . Reinforcement 2 | . 2 . Assault . | . . . Garrison . | . . . Intercept . | . . . Searches Triggered . | . . . Construction Impeded . | . . . Haulers Reinforced . | . . . Active Scanning Responses . | . . . Cargo Convoy Interrupts . | . . . Stealth | -11 -10 -10 --------- Run | Yrd Mat Min Distress Signals 1 | . . 1 Communications Jammed . | . . . Distress Signals . | . . . Times Spotted 25 | . 17 8 Peak Tracking Total 9 | . 3 9 Tactical Retreats 2 | . . 2 Traps | -11 -10 -10 ------- Run | Yrd Mat Min Traps Triggered 1 | . 1 . Indirectly . | . . . Trap Hack Attempts . | . . . Triggered . | . . . Disarmed . | . . . Reprogrammed . | . . . Reused . | . . . Traps Extracted . | . . . Installed . | . . . Triggered . | . . . Machines | -11 -10 -10 ---------- Run | Yrd Mat Min Machines Disabled . | . . . Max in Single Turn . | . . . Machines Repaired . | . . . Machines Dismantled . | . . . Machines Sabotaged . | . . . Overloaded Fab Kills . | . . . Hacking | -11 -10 -10 --------- Run | Yrd Mat Min Machines Accessed 6 | . 6 . Terminals 6 | . 6 . Fabricators . | . . . Repair Stations . | . . . Recycling Units . | . . . Scanalyzers . | . . . Garrison Access . | . . . Total Hacks 17 | . 17 . Successful 9 | . 9 . Failed 8 | . 8 . Catastrophic . | . . . Database Lockouts . | . . . Manual 17 | . 17 . Terminals 17 | . 17 . Fabricators . | . . . Repair Stations . | . . . Recycling Units . | . . . Scanalyzers . | . . . Garrison Access . | . . . Terminal Hacks 1 | . 1 . Terminal Index 1 | . 1 . Fabricator Hacks . | . . . Repair Station Hacks . | . . . Recycling Unit Hacks . | . . . Scanalyzer . | . . . Garrison Access Hacks . | . . . Unauthorized Hacks 8 | . 8 . Terminals 8 | . 8 . Track 1 | . 1 . Botnet 2 | . 2 . Operators 1 | . 1 . Skim 4 | . 4 . Fabricators . | . . . Repair Stations . | . . . Recycling Units . | . . . Scanalyzers . | . . . Garrison Access . | . . . Data Cores Recovered . | . . . Used . | . . . Hacking Detections 5 | . 5 . Full Trace Events . | . . . Feedback Events . | . . . Feedback Blocked . | . . . Robot Schematics Acquired . | . . . Robots Built . | . . . Authchips . | . . . Time . | . . . Total Robot Build Rating . | . . . Part Schematics Acquired . | . . . Parts Built . | . . . Authchips . | . . . Time . | . . . Total Part Build Rating . | . . . Part Studies Acquired . | . . . Parts Repaired . | . . . Time . | . . . Parts Recycled . | . . . Recycled Matter . | . . . Retrieved Matter . | . . . Retrieved Components . | . . . Parts Scanalyzed . | . . . Part Schematics Acquired . | . . . Parts Damaged . | . . . Bothacking | -11 -10 -10 ------------ Run | Yrd Mat Min Used RIF Installer . | . . . Robots Hacked . | . . . Non-combat . | . . . Combat . | . . . Robot Hacks Applied . | . . . Relay Couplers Released . | . . . Fabnet Peak Effective % . | . . . Robots Rewired . | . . . Allies Hacked . | . . . Hacks Repelled . | . . . Allies | -11 -10 -10 -------- Run | Yrd Mat Min Total Allies . | . . . Largest Group . | . . . Highest-Rated Group . | . . . Highest-Rated Ally . | . . . Total Orders . | . . . Ally Attacks . | . . . Total Damage . | . . . Kills . | . . . Allies Corrupted . | . . . Allies Melted . | . . . Intel | -11 -10 -10 ------- Run | Yrd Mat Min Active Infowar (turns) . | . . . Robot Analysis Total . | . . . Derelict Logs Recovered 1 | . . 1 Drone Launches . | . . . Drone Recoveries . | . . . Exploration | -11 -10 -10 ------------- Run | Yrd Mat Min Turns Passed 1474 | 60 896 518 Spaces Moved 779 | 36 445 298 Core 7 | 7 . . Treads 772 | 29 445 298 Legs . | . . . Wheels . | . . . Hover . | . . . Flight . | . . . Fastest Speed 50 | 50 160 160 Average Speed 159 | 138 160 160 Slowest Speed 240 | 160 160 240 Overloaded Moves . | . . . Propulsion Burnouts . | . . . Robots Hopped . | . . . Potential Cave-ins . | . . . Cave-ins Triggered . | . . . Exploration Rate (%) 43 | 4 91 34 Regions Visited 2 Branch Regions 1 Pre-discovered Areas . | . . . Known Exits Taken . | . . . Unknown Exits Taken 2 | 1 1 . Scrap Searched . | . . . Spaces Dug . | . . . Terrain Destroyed . | . . . Melee . | . . . Projectile . | . . . AOE . | . . . Terrain Rammed . | . . . Walls Destroyed . | . . . Machines Disabled . | . . . Actions | -11 -10 -10 --------- Run | Yrd Mat Min Total 910 | 43 548 319 Wait 29 | . 20 9 Move 777 | 35 444 298 Hop . | . . . Pick Up 19 | 2 17 . Fast Attach 7 | 6 1 . Attach 3 | . 2 1 Detach . | . . . Swap 5 | . 5 . Drop 12 | . 12 . Fire 33 | . 33 . Melee 24 | . 13 11 Ram . | . . . Kick . | . . . Crush 1 | . 1 . Escape Stasis . | . . . Rewire . | . . . Trap . | . . . Miscellaneous . | . . . Route ------- -11/Scrapyard -10/Materials (discovered 4 exits: [*Mat x2] / [*Min] / [*Sub]) -10/Mines (discovered 1 exit: [*Mat]) History --------- Turn | Location | Event 30 | -11/Scrapyard | Discovered new exit (range 15) 61 | -11/Scrapyard | Entered Materials 235 | -10/Materials | Discovered new exit (range 5) 273 | -10/Materials | Discovered new exit (range 3) 314 | -10/Materials | Build established: Mutant 355 | -10/Materials | Discovered new exit (range 16) 748 | -10/Materials | Discovered new exit (range 16) 957 | -10/Materials | Entered Mines 977 | -10/Mines | Met a Derelict bent on vengeance 1063 | -10/Mines | Discovered new exit (range 7) 1128 | -10/Mines | Assembled infested the area 1133 | -10/Mines | Assisted by a Guerilla fighting off Assembled 1465 | -10/Mines | Core integrity fell below 50% 1471 | -10/Mines | Core integrity fell below 20% 1475 | -10/Mines | Destroyed by D-53 Grenadier with Mini Grenade Launcher Last Messages --------------- 01419_ as-87012 system corrupted by crushing effect. 01422_ as-87012 destroyed. 01455_ Sneak attack on U-05 Engineer. 01455_ Destroyed Structural Scanner. 01455_ Destroyed Terrain Scanner. 01455_ U-05 Engineer system corrupted by crushing effect. 01455_ U-05 Engineer knocked back. 01455_ U-05 Engineer sends out distress signal. 01456_ U-05 Engineer system terminally corrupted. 01464_ U-05 Engineer lays Concrete. 01466_ Lgt. Treads destroyed. 01466_ D-53 Grenadier destroyed. 01466_ U-05 Engineer destroyed. 01468_ The unstable cave ceiling collapses. 01468_ Assault Rifle destroyed. 01471_ D-53 Grenadier knocked back. 01472_ The unstable cave ceiling collapses. Map ----- +----------------------------------------------------+ | ?????????????????????????????????????????????????? | | ?????????????????????????????????????????????????? | | ?????????????????????????????????????????????????? | | ?????????????????????????????????????????????????# | | ????????????????????????????????????????## ?##???# | | ????????????????????????????????????????# ### | | ?????????????????????????????????? | | ????????????????????????????????????????# # | | ????????????????????????????????????????# ?# | | ????????????????????????????????????????## ??# | | ????????????????????????? #??????????????## ???# | | ????????????????????????? ???????????????##????# | | ???????????????????????? ?????????????????????# | | ???????????????????????? ##???????????????????# | | ???????????????????????? ##??????????????????# | | ????????????????????????? ?????????????????## | | ????????????????????????? #????????????????## | | ????????????????????????? ##??????????###### | | ?????????????????????????# r ###????##### * | | ????????????????????????## #????# %! | | ????????????????????????# #?#### ###%##### | | ??????????????????????### #??# =%#?# #???### | | ?????????????????????## ###?# ####?#!#?????# | | ?????????????????????# ### #????#!#?????# | | ????????????????????### # ## #????#=#?????# | | ???????????????????## d @ ### #????#!#?????? | | ???????????????????# = #????#%#?????? | | ??????????????????# # ####????#!#?????? | | ?????????????????# ??# #???????#%#?????? | | ?????????????????#????## ##???????!==?????? | | ???????????????????????#### # ##???????? ! ?????? | | ??????????????????????????######????????? ?????? | | ????????????????????????????????????????? ?????? | | ????????????????????????????????????????? ?????? | | ????????????????????????????????????????? ?????? | | ????????????????????????????????????????? ?????? | | ????????????????????????????????????????? ?????? | | ?????????????????????????????????????????????????? | | ?????????????????????????????????????????????????? | | ?????????????????????????????????????????????????? | | ?????????????????????????????????????????????????? | | ?????????????????????????????????????????????????? | | ?????????????????????????????????????????????????? | | ?????????????????????????????????????????????##### | | ?????????????????????????????????????????????# | | ?????????????????????????????????????????????# ### | | ?????????????????????????????????????????????#+#?? | | ?????????????????????????????????????????????# ### | | ?????????????????????????????????????????????# | | ?????????????????????????????????????????????# | +----------------------------------------------------+ Best States ------------- Heat Dissipation 25 Energy Generation 10 Energy Capacity 250 Matter Stores 300 Matter Capacity 300 Sight Range 16 Terrain Scan Density 10 Weapon Shielding 33 Evasion (%) 40 Targeting Accuracy 6 Recoil Reduction 2 Item Schematics ----------------- None Robot Schematics ------------------ None Fabricated ------------ Nothing Repaired ---------- Nothing Studied --------- None Alien Tech Used ----------------- None Achievements -------------- None Challenges ------------ None Game ------ Seed ZeronetFlakTurbovents Manual? 0 Play Time 00:09:01 Cumulative 123.7 hours Start 2025.11.07 @ 14:13:44 End 2025.11.07 @ 14:20:32 Sessions 1 Manual Loads 0 Difficulty Rogue Special Mode None Game No. 316 Rogue 314 Adventurer 2 Explorer 0 Win Type - Total 1 Types 1/0/0/0/0/0/0/0/0/0 Lore% 79 Gallery% 61 Achievement% 40 Wizard Run 0 Options --------- Layout 2 ASCII 0 Keyboard 0 Movement Numpad Keybinds 0 Fullscreen 2 Font 24/Smallcaps Map View 50x44 Zoom Use 0% Tactical HUD 1 Map Filters NONE Filters NONE Steam 1 RUN: 2d0e2395-3841-4bf9-8157-751209901310